bitfinex/quotes_ETHUSD_20241022
["timestamp","ask_amount","ask_price","bid_price","bid_amount"]
[1729596242547,3.79334,2636.2,2636.1,0.59500431]
[1729596253674,3.79334,2636.2,2636.1,0.17911739]
[1729596254673,3.79326,2636.3,2636.1,0.17911739]
[1729596255082,3.79326,2636.3,2636.1,1.83850576]
[1729596255287,3.79302,2636.5,2636.1,1.83850576]
[1729596255288,3.79302,2636.5,2636.2,0.8041]
[1729596255645,3.79304,2636.5,2636.3,0.17873194]
[1729596255877,3.79304,2636.5,2636.3,0.44295397]
[1729596256583,3.79305,2636.4,2636.3,0.44295397]
[1729596264685,3.79305,2636.4,2636.3,0.17873194]
[1729596266209,3.79291,2636.5,2636.3,0.17873194]
[1729596267788,3.79305,2636.4,2636.3,0.17873194]
[1729596268317,3.79305,2636.4,2636.0,5.60540156]
[1729596268486,3.79305,2636.4,2636.1,0.17880734]
[1729596268688,3.79305,2636.4,2636.1,1.17513765]
[1729596271240,4.57361,2636.5,2636.1,1.17513765]
[1729596271554,7.58595,2636.5,2636.1,2.83452602]
[1729596272538,3.79291,2636.5,2636.1,2.83452602]
[1729596273043,7.58592,2636.5,2636.1,2.83452602]
[1729596273213,3.79305,2636.4,2636.2,0.7416986]
[1729596273537,3.79305,2636.4,2636.3,0.17852837]
[1729596276036,3.79348,2636.1,2636.0,2.77556876]
[1729596276196,3.79377,2635.9,2635.8,2.77556876]
[1729596276396,0.8302,2636.0,2635.7,3.72999541]
[1729596276397,4.62382,2636.0,2635.7,6.50556417]
[1729596276594,4.62382,2636.0,2635.8,0.85427278]
[1729596276831,3.79377,2635.9,2635.8,3.62984154]
[1729596277037,0.8302,2636.0,2635.8,3.62984154]
[1729596277242,3.79363,2636.0,2635.8,3.62984154]
[1729596277827,3.79363,2636.0,2635.8,3.63097577]
[1729596278027,3.79363,2636.0,2635.9,0.90203596]
[1729596279432,3.79377,2635.9,2635.8,3.63097577]
[1729596281573,3.79391,2635.8,2635.7,6.5066984]
[1729596281873,3.79391,2635.8,2635.7,3.72999541]
[1729596282774,3.79391,2635.8,2635.7,6.5066984]
[1729596285216,3.79391,2635.8,2635.7,10.5066984]
[1729596286382,3.79391,2635.8,2635.7,7.72999541]
[1729596290031,3.79391,2635.8,2635.7,7.90897212]
[1729596297208,8.36662,2635.9,2635.7,10.8668923]
[1729596297411,3.79369,2636.0,2635.8,2.40978837]
[1729596297713,3.79369,2636.0,2635.9,0.17906322]
[1729596297922,3.79369,2636.0,2635.9,1.6184657]
[1729596298608,3.79369,2636.0,2635.9,5.6184657]
[1729596299130,7.58682,2636.2,2635.9,5.6184657]
[1729596299731,7.58682,2636.2,2635.9,5.69433204]
[1729596300040,3.79349,2636.1,2635.9,5.6184657]
[1729596300261,3.79349,2636.1,2636.0,0.80282541]
[1729596300467,3.79349,2636.1,2636.0,4.80282541]
[1729596300624,3.79349,2636.1,2636.0,4.98181853]
[1729596301117,3.79322,2636.3,2636.0,4.98181853]
[1729596301317,3.79334,2636.2,2636.1,0.80806094]
[1729596301521,3.79322,2636.3,2636.1,4.98698396]
[1729596301828,3.79333,2636.2,2636.1,4.98698396]
[1729596306740,3.79333,2636.2,2636.1,5.27014897]
[1729596309573,3.79333,2636.2,2636.1,2.44731496]
[1729596309875,3.79333,2636.2,2636.1,2.90253891]
[1729596316490,3.79322,2636.3,2636.1,4.37135816]
[1729596316491,7.58651,2636.3,2636.1,4.37135816]
[1729596316687,3.79322,2636.3,2636.1,6.86435689]
[1729596317024,3.79322,2636.3,2636.2,0.28328218]
[1729596317227,3.79322,2636.3,2636.2,5.16398492]
[1729596317427,3.79322,2636.3,2636.2,5.33586786]
[1729596320250,3.79322,2636.3,2636.2,5.33570225]
[1729596323330,3.79306,2636.4,2636.2,5.05258568]
[1729596323528,3.79306,2636.4,2636.3,0.28312357]
[1729596323856,3.79306,2636.4,2636.3,5.58629993]
[1729596324060,3.79306,2636.4,2636.3,5.30317636]
[1729596324347,3.79306,2636.4,2636.3,5.5862938]
[1729596328155,3.79306,2636.4,2636.3,1.5862938]
[1729596329715,3.79306,2636.4,2636.3,0.4548424]
[1729596331044,3.79306,2636.4,2636.3,4.4548424]
[1729596331245,3.79306,2636.4,2636.3,4.17172496]
[1729596331449,3.79306,2636.4,2636.3,4.45457818]
[1729596338163,3.79288,2636.6,2636.3,4.45457818]
[1729596338445,3.79288,2636.6,2636.3,6.94394267]
[1729596338792,3.79288,2636.6,2636.4,0.2829059]
[1729596339081,3.79288,2636.6,2636.5,0.2829059]
[1729596339285,3.79288,2636.6,2636.5,0.45437504]
[1729596340661,3.79288,2636.6,2636.5,4.45437504]
[1729596346918,7.46,2637.1,2636.5,4.45437504]
[1729596346919,0.7702,2637.2,2636.5,9.60941907]
[1729596347207,5.5,2637.7,2636.9,1.65938837]
[1729596347208,3.79215,2637.1,2636.9,1.65938837]
[1729596347410,3.79215,2637.1,2637.0,0.2829059]
[1729596347561,3.79215,2637.1,2637.0,3.22683934]
[1729596347910,3.79185,2637.3,2637.0,9.5013953]
[1729596348216,3.79185,2637.3,2637.2,2.7729256]
[1729596348367,3.79185,2637.3,2637.2,0.2829059]
[1729596348562,3.7917,2637.4,2637.3,0.8328]
[1729596348864,3.7917,2637.4,2637.3,1.28650364]
[1729596349426,3.7917,2637.4,2637.3,5.28650364]
[1729596350812,3.7917,2637.4,2637.3,4.45370364]
[1729596353081,10.15384421,2637.4,2637.3,4.45370364]
[1729596353284,10.15384421,2637.4,2637.3,4.17079774]
[1729596353580,10.15384421,2637.4,2637.3,4.0]
[1729596354178,10.15384421,2637.4,2637.3,4.17019654]
[1729596356478,10.15384421,2637.4,2637.3,0.17019654]
[1729596356688,10.15384421,2637.4,2636.8,4.0]
[1729596356914,3.79233,2636.9,2636.8,4.0]
[1729596364951,3.79233,2636.9,2636.8,4.17055599]
[1729596368008,3.79233,2636.9,2636.8,0.17055599]
[1729596368855,3.7922,2637.0,2636.8,2.65184436]
[1729596369053,3.7922,2637.0,2636.9,1.65938837]
[1729596369207,3.7922,2637.0,2636.8,2.65184436]
[1729596369404,3.7922,2637.0,2636.9,0.71227399]
[1729596369647,3.79205,2637.1,2636.9,0.71227399]
[1729596369854,7.58422,2637.1,2636.9,0.71227399]
[1729596370008,3.79218,2637.0,2636.9,0.71227399]
[1729596370204,3.79218,2637.0,2636.9,0.17047669]
[1729596371059,3.79218,2637.0,2636.9,4.17047669]
[1729596371967,3.79218,2637.0,2636.9,5.82986506]
[1729596372250,3.79218,2637.0,2636.9,4.17047669]
[1729596372417,3.79218,2637.0,2636.9,4.95391133]
[1729596374360,3.79218,2637.0,2636.9,4.17047669]
[1729596379524,4.61488,2637.0,2636.9,4.17047669]
[1729596381241,4.61488,2637.0,2636.9,4.0]
[1729596381439,4.61488,2637.0,2636.9,4.17041662]
[1729596385862,6.27426837,2637.0,2636.9,4.17041662]
[1729596386028,10.28090021,2637.0,2636.9,4.17041662]
[1729596387054,10.28090021,2637.0,2636.9,0.17041662]
[1729596387436,10.28090021,2637.0,2636.5,4.0]
[1729596387437,3.79276,2636.6,2636.5,4.0]
[1729596388729,3.79276,2636.6,2636.5,6.7715658]
[1729596388930,3.79276,2636.6,2636.5,4.0]
[1729596389931,3.79276,2636.6,2636.5,6.7715658]
[1729596390244,3.79276,2636.6,2636.5,4.0]
[1729596390455,3.79276,2636.6,2636.5,6.7715658]
[1729596393434,3.79276,2636.6,2636.5,6.77307124]
[1729596395067,3.7927,2636.7,2636.5,9.50700994]
[1729596395268,3.7927,2636.7,2636.6,0.808]
[1729596395585,3.7927,2636.7,2636.6,4.97814314]
[1729596395746,3.79256,2636.8,2636.6,7.75121438]
[1729596397691,3.79256,2636.8,2636.7,2.77307124]
[1729596397849,3.79256,2636.8,2636.7,7.80456523]
[1729596398052,3.79256,2636.8,2636.7,7.97463831]
[1729596398478,3.79256,2636.8,2636.7,7.97461074]
[1729596403303,3.79256,2636.8,2636.7,7.97482331]
[1729596408411,3.79256,2636.8,2636.7,7.9747705]
[1729596409618,2.93846112,2636.8,2636.7,7.97474349]
[1729596411013,2.93846112,2636.8,2636.7,5.20156707]
[1729596411166,2.93846112,2636.8,2636.7,7.97404696]
[1729596411372,2.93846112,2636.8,2636.7,5.20156707]
[1729596412118,2.93846112,2636.8,2636.7,7.97368271]
[1729596412703,2.16263277,2636.8,2636.7,7.97368271]
[1729596412911,3.79233,2636.9,2636.7,7.97368271]
[1729596413192,3.79233,2636.9,2636.8,3.65030182]
[1729596413390,3.79233,2636.9,2636.8,7.82025859]
[1729596414082,3.79233,2636.9,2636.8,5.04812504]
[1729596414671,3.79233,2636.9,2636.8,7.82025859]
[1729596414870,3.79233,2636.9,2636.8,5.04812504]
[1729596415623,3.79233,2636.9,2636.8,7.82025859]
[1729596415975,3.79233,2636.9,2636.8,5.04812504]
[1729596417245,3.79233,2636.9,2636.8,7.82015758]
[1729596417811,3.79233,2636.9,2636.8,5.04812504]
[1729596418020,3.79233,2636.9,2636.8,7.82018937]
[1729596418388,3.79233,2636.9,2636.8,5.04812504]
[1729596418787,3.79233,2636.9,2636.8,7.8204345]
[1729596418992,3.79233,2636.9,2636.8,5.04812504]
[1729596420515,3.79233,2636.9,2636.8,7.82167471]
[1729596420683,3.79233,2636.9,2636.8,5.04812504]
[1729596421994,3.7922,2637.0,2636.8,5.04812504]
[1729596422207,3.7922,2637.0,2636.9,3.60654507]
[1729596422482,2.42018837,2637.2,2636.9,8.57152716]
[1729596422483,3.79211,2637.1,2636.9,8.57152716]
[1729596422685,0.802,2637.6,2637.0,4.50929561]
[1729596422890,3.79162,2637.4,2637.2,5.22790939]
[1729596423089,3.79162,2637.4,2637.3,2.77342102]
[1729596423327,3.79162,2637.4,2637.3,2.94295359]
[1729596423530,3.79127,2637.7,2637.3,6.94295359]
[1729596423695,0.7629,2637.8,2637.3,6.94142541]
[1729596423696,3.79146,2637.5,2637.3,6.94142541]
[1729596424032,3.79146,2637.5,2637.4,3.58326039]
[1729596424387,3.79146,2637.5,2637.4,0.9808301]
[1729596424585,3.79133,2637.6,2637.4,4.9808301]
[1729596424586,7.58275,2637.6,2637.4,4.9808301]
[1729596424819,3.79133,2637.6,2637.4,4.9808301]
[1729596425024,3.79133,2637.6,2637.4,7.75272294]
[1729596425523,3.79146,2637.5,2637.4,4.9808301]
[1729596426230,7.58274,2637.6,2637.4,4.9808301]
[1729596426402,3.79133,2637.6,2637.5,0.77524461]
[1729596426583,3.79133,2637.6,2637.5,4.77524461]
[1729596426792,3.79133,2637.6,2637.5,4.94463714]
[1729596429834,3.79119,2637.7,2637.5,5.76353714]
[1729596430189,0.005,2637.8,2637.5,5.76353714]
[1729596430401,3.79612,2637.8,2637.6,0.93465207]
[1729596430630,3.79118,2637.7,2637.6,4.93465207]
[1729596431436,3.7961,2637.8,2637.6,4.93465207]
[1729596431802,0.005,2637.8,2637.6,6.59404044]
[1729596432022,0.005,2637.8,2637.6,7.70626807]
[1729596432223,0.005,2637.8,2637.7,1.01845564]
[1729596432420,0.005,2637.8,2637.7,5.01845564]
[1729596433195,3.79603,2637.8,2637.7,5.01845564]
[1729596436616,3.79603,2637.8,2637.7,4.0]
[1729596438812,0.005,2637.8,2637.7,4.0]
[1729596439422,0.005,2637.8,2637.7,6.49218837]
[1729596439622,0.005,2637.8,2637.7,4.8328]
[1729596440013,0.005,2637.8,2637.7,5.00157632]
[1729596440358,0.005,2637.8,2637.7,8.05946769]
[1729596440556,0.005,2637.8,2637.7,7.98365472]
[1729596440763,0.005,2637.8,2637.7,7.99365472]
[1729596441762,3.79047,2638.2,2637.7,11.79483472]
[1729596441964,3.79047,2638.2,2637.9,2.49218837]
[1729596442119,3.79047,2638.2,2638.0,0.33260575]
[1729596442314,3.79032,2638.3,2638.0,0.50095484]
[1729596442817,3.79049,2638.2,2638.0,0.42514862]
[1729596443026,3.79049,2638.2,2638.0,4.42514862]
[1729596444061,3.79032,2638.3,2638.0,4.42514862]
[1729596444222,3.79032,2638.3,2638.1,0.52579486]
[1729596444418,3.79047,2638.2,2638.1,4.52579486]
[1729596448782,1.65938837,2638.2,2637.7,2.14609003]
[1729596449078,3.79083,2638.0,2637.7,0.8234]
[1729596449460,3.79083,2638.0,2637.7,2.48278837]
[1729596449637,3.7905,2638.2,2637.8,1.91866721]
[1729596449838,3.7905,2638.2,2637.9,0.817]
[1729596451719,1.65938837,2638.3,2637.9,0.817]
[1729596452013,3.79046,2638.2,2637.9,0.817]
[1729596453505,3.79033,2638.3,2638.0,1.82736779]
[1729596453712,3.79033,2638.3,2638.1,0.26443678]
[1729596454118,3.79046,2638.2,2637.9,0.817]
[1729596454917,3.79046,2638.2,2638.0,0.16797942]
[1729596455628,3.79053,2638.2,2638.0,1.66797942]
[1729596455804,3.7906,2638.1,2638.0,1.66797942]
[1729596456483,3.79053,2638.2,2638.0,1.66797942]
[1729596456689,3.79053,2638.2,2638.1,0.24849794]
[1729596456935,3.79053,2638.2,2638.1,0.41640738]
[1729596462506,7.58076,2638.3,2638.1,0.41640738]
[1729596462706,3.79033,2638.3,2638.1,0.41640738]
[1729596462906,0.005,2638.4,2638.2,2.79396795]
[1729596463106,0.005,2638.4,2638.2,1.13457958]
[1729596463305,3.79517,2638.4,2638.2,3.89492244]
[1729596463508,3.79517,2638.4,2638.3,0.16771865]
[1729596464397,0.005,2638.4,2638.3,1.9029053]
[1729596464600,0.005,2638.4,2638.3,2.88674293]
[1729596465040,3.78965,2638.8,2638.3,2.89674293]
[1729596465341,3.78965,2638.8,2638.4,5.19720185]
[1729596465606,3.78975,2638.7,2638.5,2.76181348]
[1729596465754,3.78965,2638.8,2638.5,1.82666683]
[1729596465952,3.78965,2638.8,2638.6,0.61223816]
[1729596466458,3.78965,2638.8,2638.7,0.16713855]
[1729596469822,3.78965,2638.8,2638.4,5.19682529]
[1729596470021,3.78965,2638.8,2638.7,0.16713855]
[1729596470270,3.78965,2638.8,2638.4,5.19682529]
[1729596470586,3.78965,2638.8,2638.5,0.61906629]
[1729596470758,3.7896,2638.8,2638.6,1.65938837]
[1729596470957,3.7896,2638.8,2638.5,3.62357188]
[1729596471157,3.7896,2638.8,2638.7,0.16713855]
[1729596471338,3.7896,2638.8,2638.6,0.1672085]
[1729596471539,3.78974,2638.7,2638.6,0.59831001]
[1729596474467,5.44912837,2638.7,2638.4,2.76226821]
[1729596474678,3.78974,2638.7,2638.4,2.76226821]
[1729596474829,3.78996,2638.6,2638.4,2.76226821]
[1729596475164,3.79005,2638.5,2638.3,7.47610125]
[1729596475930,3.78982,2638.7,2638.3,7.47610125]
[1729596476131,3.78992,2638.6,2638.4,0.82981013]
[1729596476549,3.78982,2638.7,2638.4,0.82981013]
[1729596476550,3.78982,2638.7,2638.4,2.4891985]
[1729596476735,3.78997,2638.6,2638.4,3.59207834]
[1729596478659,3.78997,2638.6,2638.4,3.59407137]
[1729596478971,0.8187,2638.8,2638.4,5.25345974]
[1729596479176,7.57969,2638.7,2638.5,0.99672928]
[1729596479466,3.78982,2638.7,2638.5,0.99672928]
[1729596479671,4.61848,2638.6,2638.5,3.76099052]
[1729596479846,3.78988,2638.6,2638.5,0.99672928]
[1729596481258,3.78975,2638.7,2638.5,0.99672928]
[1729596482298,3.78975,2638.7,2638.5,3.76135928]
[1729596482473,3.78975,2638.7,2638.6,0.37613593]
[1729596482969,4.61826,2638.8,2638.6,0.37613593]
[1729596483797,4.61826,2638.8,2638.6,3.14076593]
[1729596484171,3.78939,2639.0,2638.7,0.7887]
[1729596484386,4.61564,2639.2,2638.7,0.7887]
[1729596484387,6.78924,2639.1,2638.7,5.21271837]
[1729596484558,3.78924,2639.1,2638.8,3.3310943]
[1729596484868,3.78924,2639.1,2638.9,0.16674925]
[1729596485300,3.78917,2639.1,2638.9,0.16674925]
[1729596487254,3.78902,2639.2,2638.9,0.16674925]
[1729596487458,3.78902,2639.2,2638.9,2.93103931]
[1729596487704,3.88898,2639.3,2638.9,2.93103931]
[1729596487705,3.88897,2639.3,2639.0,0.50732861]
[1729596487853,3.78903,2639.2,2639.1,0.16641083]
[1729596488435,5.44841837,2639.2,2639.1,0.16641083]
[1729596488799,3.78903,2639.2,2638.8,4.83075436]
[1729596489029,3.78903,2639.2,2639.1,0.16638312]
[1729596489231,3.78927,2639.1,2638.8,4.83075436]
[1729596489401,3.78927,2639.1,2638.9,0.56194544]
[1729596492237,7.57858,2639.1,2638.9,0.56194544]
[1729596492395,3.78927,2639.1,2638.9,0.56194544]
[1729596492907,3.78931,2639.0,2638.9,0.56194544]
[1729596493105,3.78945,2638.9,2638.8,1.5]
[1729596494145,3.78931,2639.0,2638.8,1.5]
[1729596494321,3.78924,2639.1,2638.8,2.2886]
[1729596494491,3.78918,2639.1,2638.8,2.2886]
[1729596494692,3.78918,2639.1,2638.9,0.67122784]
[1729596495194,7.57824,2639.2,2638.9,0.67122784]
[1729596495397,3.78912,2639.2,2638.9,0.67122784]
[1729596495919,3.88893,2639.3,2638.9,3.4355179]
[1729596496345,3.88893,2639.3,2639.0,0.07577729]
[1729596496653,3.88893,2639.3,2639.0,1.20066265]
[1729596496815,0.1,2639.3,2639.0,1.12488536]
[1729596497020,3.88896,2639.3,2639.1,0.7711]
[1729596498142,3.88896,2639.3,2639.0,1.12488536]
[1729596498143,3.78902,2639.2,2639.0,1.12488536]
[1729596498313,3.88888,2639.3,2639.0,1.12488536]
[1729596498513,3.88888,2639.3,2639.1,0.45604033]
[1729596498754,3.78902,2639.2,2639.1,0.45604033]
[1729596499817,0.1,2639.3,2639.1,0.45604033]
[1729596500024,0.1,2639.3,2639.1,3.05280564]
[1729596500215,0.1,2639.3,2639.1,4.15770733]
[1729596500422,0.1,2639.3,2639.2,3.45848817]
[1729596500838,0.1,2639.3,2639.2,3.62462131]
[1729596501164,0.1,2639.3,2639.2,3.62318747]
[1729596501825,0.1,2639.3,2639.2,5.28257584]
[1729596503151,0.1281084,2639.5,2639.3,0.83]
[1729596503393,3.9167084,2639.5,2639.3,1.48097162]
[1729596503694,3.9167084,2639.5,2639.4,0.1659933]
[1729596504275,3.78888,2639.3,2639.1,6.62422411]
[1729596504470,3.78888,2639.3,2639.1,4.96483574]
[1729596504701,7.57784,2639.3,2639.2,3.42531262]
[1729596504920,3.78888,2639.3,2639.2,3.42531262]
[1729596506063,3.01585401,2639.3,2639.2,3.42531262]
[1729596506806,3.01585401,2639.3,2639.2,3.21404142]
[1729596506965,3.01585401,2639.3,2639.2,2.76289021]
[1729596508070,3.78875,2639.4,2639.2,3.21404142]
[1729596508267,3.78875,2639.4,2639.2,2.76289021]
[1729596508582,3.78875,2639.4,2639.3,0.45127745]
[1729596508905,3.78875,2639.4,2639.3,4.45127745]
[1729596509111,3.78875,2639.4,2639.3,0.45127745]
[1729596509267,3.78888,2639.3,2639.2,0.45127745]
[1729596509615,3.78888,2639.3,2639.2,0.91500877]
[1729596509771,3.78888,2639.3,2639.2,1.70140877]
[1729596510694,7.57758,2639.4,2639.2,1.70140877]
[1729596511290,3.78875,2639.4,2639.2,1.70140877]
[1729596512104,3.78888,2639.3,2639.2,5.70114718]
[1729596513313,3.78874,2639.4,2639.2,5.70114718]
[1729596513615,3.78874,2639.4,2639.3,0.98871829]
[1729596513924,3.78874,2639.4,2639.3,4.98871829]
[1729596514926,3.78874,2639.4,2639.3,5.15460611]
[1729596515075,4.60414,2639.4,2639.3,4.16588782]
[1729596515273,6.26352837,2639.4,2639.3,4.16588782]
[1729596516095,4.60414,2639.4,2639.3,4.16588782]
[1729596518131,3.78874,2639.4,2639.3,4.16588782]
[1729596520513,5.44812837,2639.4,2639.3,4.16588782]
[1729596520702,3.78874,2639.4,2639.3,4.16588782]
[1729596521306,5.44812837,2639.4,2639.3,4.16588782]
[1729596521506,3.78874,2639.4,2639.3,4.16588782]
[1729596521701,6.21372837,2639.4,2639.3,4.16588782]
[1729596524309,10.22677305,2639.4,2639.3,4.16588782]
[1729596525023,10.22677305,2639.4,2639.3,0.16588782]
[1729596525424,3.78902,2639.2,2639.1,3.72999541]
[1729596525639,6.22750837,2639.2,2639.1,3.72999541]
[1729596529815,3.78931,2639.0,2638.8,4.26668015]
[1729596530103,5.44883837,2638.9,2638.8,4.26668015]
[1729596530308,6.23093837,2638.9,2638.8,1.5]
[1729596531220,7.23296321,2638.9,2638.8,1.5]
[1729596531443,10.23296321,2638.9,2638.8,1.5]
[1729596531582,8.44883837,2638.9,2638.8,1.5]
[1729596532689,6.78945,2638.9,2638.8,1.5]
[1729596534345,3.78945,2638.9,2638.8,1.5]
[1729596534996,3.78945,2638.9,2638.8,4.26560573]
[1729596535192,3.78945,2638.9,2638.8,1.5]
[1729596535393,3.78945,2638.9,2638.8,2.00386057]
[1729596539099,3.78945,2638.9,2638.8,1.5]
[1729596540001,5.44883837,2638.9,2638.8,1.5]
[1729596540714,3.78945,2638.9,2638.8,1.5]
[1729596540985,5.44883837,2638.9,2638.8,1.5]
[1729596541559,3.78945,2638.9,2638.8,1.5]
[1729596542098,5.44883837,2638.9,2638.8,1.5]
[1729596544971,5.44883837,2638.9,2638.8,1.66652369]
[1729596545369,3.78945,2638.9,2638.8,1.66652369]
[1729596548802,3.78945,2638.9,2638.8,2.18965929]
[1729596550225,7.57847,2639.1,2638.8,2.18965929]
[1729596550521,3.78931,2639.0,2638.8,2.18965929]
[1729596552886,6.26863837,2638.9,2638.8,1.66652369]
[1729596554631,9.26863837,2638.9,2638.8,1.66652369]
[1729596556792,8.44883837,2638.9,2638.8,1.66652369]
[1729596559695,6.78945,2638.9,2638.8,1.66652369]
[1729596562196,8.44883837,2638.9,2638.8,1.66652369]
[1729596567408,9.22473837,2638.9,2638.8,1.66652369]
[1729596567602,10.52614321,2638.9,2638.8,1.66652369]
[1729596575438,7.56535,2638.9,2638.8,1.66652369]
[1729596575641,9.22473837,2638.9,2638.8,1.66652369]
[1729596578664,8.44883837,2638.9,2638.8,1.66652369]
[1729596585654,8.44883837,2638.9,2638.8,5.66652369]
[1729596588870,8.44883837,2638.9,2638.8,1.66652369]
[1729596592477,8.44883837,2638.9,2638.8,5.66652369]
[1729596595053,9.75537321,2638.9,2638.8,5.66652369]
[1729596596102,10.53107321,2638.9,2638.8,1.66652369]
[1729596600753,10.53107321,2638.9,2638.8,0.16652369]
[1729596600754,12.19046158,2638.9,2638.8,0.16652369]
[1729596600953,6.79017,2638.4,2638.3,2.77081023]
[1729596601204,6.79017,2638.4,2638.3,4.0]
[1729596601205,9.82465837,2638.4,2638.3,4.0]
[1729596601659,7.61527,2638.4,2638.3,4.0]
[1729596601868,3.79017,2638.4,2638.3,4.0]
[1729596602146,3.79005,2638.5,2638.3,5.1979]
[1729596602346,3.7896,2638.8,2638.3,5.1979]
[1729596602504,1.65938837,2638.6,2638.4,3.56241023]
[1729596602708,3.7899,2638.6,2638.4,3.56241023]
[1729596603003,5.44941837,2638.5,2638.4,3.56241023]
[1729596603203,1.65938837,2638.5,2638.4,4.68595321]
[1729596603457,1.65938837,2638.5,2638.4,8.68595321]
[1729596603614,1.65938837,2638.5,2638.4,8.68492363]
[1729596604012,5.44941837,2638.5,2638.4,8.68492363]
[1729596604462,5.44941837,2638.5,2638.4,6.76978065]
[1729596604614,5.44941837,2638.5,2638.4,4.0]
[1729596604836,7.10880674,2638.5,2638.4,4.0]
[1729596605870,5.44941837,2638.5,2638.4,4.0]
[1729596606470,3.79046,2638.2,2638.1,2.76978065]
[1729596606674,5.44984837,2638.2,2638.1,2.76978065]
[1729596608276,5.44984837,2638.2,2638.0,0.8234]
[1729596608430,3.79046,2638.2,2638.1,2.77004493]
[1729596608630,5.44984837,2638.2,2638.1,2.77004493]
[1729596609160,5.44984837,2638.2,2637.8,8.50211098]
[1729596609161,3.79075,2638.0,2637.9,2.77004493]
[1729596609475,3.79089,2637.9,2637.8,8.75204034]
[1729596609648,5.45027837,2637.9,2637.8,8.75204034]
[1729596609853,5.45027837,2637.9,2637.8,5.98199541]
[1729596610186,1.65938837,2637.9,2637.8,8.75204034]
[1729596610398,3.79089,2637.9,2637.8,8.75204034]
[1729596610600,3.79089,2637.9,2637.8,5.98199541]
[1729596611746,3.79075,2638.0,2637.8,5.98199541]
[1729596611950,3.79009,2638.5,2637.8,9.68659357]
[1729596611951,3.79055,2638.2,2637.8,9.68659357]
[1729596612171,3.79062,2638.1,2637.9,2.77004493]
[1729596612970,3.79062,2638.1,2637.9,2.76836825]
[1729596613680,7.58131,2638.1,2637.9,2.76836825]
[1729596613892,7.58131,2638.1,2637.8,8.75036366]
[1729596614198,3.79062,2638.1,2637.9,2.76836825]
[1729596614352,3.79062,2638.1,2637.8,10.39089372]
[1729596614705,3.79062,2638.1,2637.9,2.76836825]
[1729596614904,7.58131,2638.1,2637.9,2.76836825]
[1729596615195,3.79062,2638.1,2637.9,2.76836825]
[1729596615501,3.79062,2638.1,2638.0,0.16115825]
[1729596616297,3.79054,2638.2,2638.0,0.16115825]
[1729596616754,3.79054,2638.2,2638.1,0.8075]
[1729596617098,3.79054,2638.2,2638.1,0.96864828]
[1729596618283,3.79018,2638.4,2638.1,1.3423304]
[1729596618490,3.79012,2638.5,2638.1,1.3423304]
[1729596618687,3.79019,2638.4,2638.1,1.3423304]
[1729596618890,3.79019,2638.4,2638.1,4.11050332]
[1729596619393,3.79012,2638.5,2638.2,2.76817292]
[1729596619552,3.79017,2638.4,2638.2,3.55829525]
[1729596619754,3.79017,2638.4,2638.3,0.16102217]
[1729596620785,3.79002,2638.6,2638.3,0.16102217]
[1729596621116,3.79002,2638.6,2638.4,0.7733]
[1729596621455,3.79002,2638.6,2638.5,0.16088223]
[1729596625184,7.57933,2638.8,2638.5,0.16088223]
[1729596625389,3.78982,2638.7,2638.5,0.5311144]
[1729596625905,3.78988,2638.6,2638.5,0.5311144]
[1729596626203,3.78988,2638.6,2638.5,0.16088223]
[1729596626559,3.78988,2638.6,2638.0,3.26943767]
[1729596626560,3.7904,2638.3,2638.1,2.76777792]
[1729596626800,3.79046,2638.2,2638.1,2.76777792]
[1729596627000,3.7902,2638.4,2638.0,3.59977792]
[1729596627208,3.7902,2638.4,2638.1,2.76777792]
[1729596627566,3.7902,2638.4,2638.1,2.77032809]
[1729596627876,3.79008,2638.5,2638.3,3.60232809]
[1729596628812,3.79008,2638.5,2638.3,0.832]
[1729596628961,3.78999,2638.6,2638.3,0.832]
[1729596629157,3.78999,2638.6,2638.3,4.3416179]
[1729596630364,5.44637511,2638.6,2638.3,4.3416179]
[1729596630988,1.65638511,2638.5,2638.3,4.3416179]
[1729596631179,5.44647511,2638.5,2638.3,4.3416179]
[1729596631373,5.44655511,2638.4,2638.3,2.77032809]
[1729596632364,5.44655511,2638.4,2638.3,2.76993314]
[1729596632718,5.44641511,2638.5,2638.3,2.76993314]
[1729596632880,5.44621511,2638.7,2638.4,0.27699331]
[1729596633078,3.78988,2638.6,2638.5,0.7855]
[1729596633280,9.23606511,2638.7,2638.5,0.7855]
[1729596633589,1.65638511,2638.6,2638.5,0.7855]
[1729596633987,5.44626511,2638.6,2638.5,0.7855]
[1729596635802,1.65638511,2638.6,2638.4,0.27699331]
[1729596636016,5.44641511,2638.5,2638.3,2.76993314]
[1729596636308,5.44641511,2638.5,2638.3,3.45358481]
[1729596636892,9.23656511,2638.5,2638.3,3.45358481]
[1729596637098,3.79017,2638.4,2638.3,3.45358481]
[1729596637279,5.44655511,2638.4,2638.3,2.77001235]
[1729596637481,3.79031,2638.3,2638.2,2.77001235]
[1729596637968,5.44669511,2638.3,2638.2,2.77001235]
[1729596638170,3.79019,2638.4,2638.2,2.77001235]
[1729596638395,3.79019,2638.4,2638.3,2.77020387]
[1729596638597,3.79019,2638.4,2638.3,3.56310387]
[1729596639135,3.78999,2638.6,2638.3,1.4764181]
[1729596639428,5.44637511,2638.6,2638.4,2.76995993]
[1729596642044,5.44637511,2638.6,2638.5,0.16063753]
[1729596643218,6.21287511,2638.6,2638.5,0.16063753]
[1729596643560,3.79031,2638.3,2638.2,2.76995993]
[1729596643853,5.44669511,2638.3,2638.2,2.76995993]
[1729596646046,3.79018,2638.4,2638.2,2.76995993]
[1729596646254,5.44656511,2638.4,2638.3,2.76995993]
[1729596646662,5.44656511,2638.4,2638.3,2.77083713]
[1729596646843,3.79018,2638.4,2638.3,2.77083713]
[1729596647547,5.44656511,2638.4,2638.3,2.77083713]
[1729596647931,1.65638511,2638.5,2638.3,3.53343713]
[1729596648259,1.65638511,2638.5,2638.4,2.77083713]
[1729596648693,3.78999,2638.6,2638.4,2.77083713]
[1729596648854,5.44637511,2638.6,2638.4,2.77083713]
[1729596649185,5.44637511,2638.6,2638.5,2.77083713]
[1729596649675,3.78999,2638.6,2638.5,2.77083713]
[1729596649881,5.44637511,2638.6,2638.5,2.77083713]
[1729596651538,5.44637511,2638.6,2638.5,2.77081728]